bitfinex/quotes_ETHUSD_20241104
["timestamp","ask_amount","ask_price","bid_price","bid_amount"]
[1730732220914,4.0848,2448.1,2447.8,0.22993347]
[1730732221163,4.08481,2448.1,2447.9,0.22993347]
[1730732221368,4.08431,2448.4,2447.7,1.17042679]
[1730732221513,4.08425,2448.5,2447.7,1.17042679]
[1730732221514,4.0846,2448.3,2447.8,4.31526969]
[1730732221710,4.08456,2448.3,2447.9,4.31508969]
[1730732221957,4.84481,2448.6,2448.0,0.22997639]
[1730732222116,4.08466,2448.2,2447.8,0.22997857]
[1730732222310,4.08466,2448.2,2447.9,0.22997857]
[1730732222311,4.08489,2448.1,2447.9,0.22997857]
[1730732222613,4.08466,2448.2,2448.0,0.22997857]
[1730732222813,4.08448,2448.3,2448.1,0.23004285]
[1730732223009,4.08448,2448.3,2448.0,0.23006666]
[1730732223238,4.08476,2448.2,2448.1,0.2300478]
[1730732223444,4.1662226,2448.2,2448.1,0.2300478]
[1730732223760,4.1662226,2448.2,2447.7,3.8125]
[1730732223761,4.0848,2448.1,2447.8,0.36809452]
[1730732224123,4.08476,2448.2,2447.9,0.23022615]
[1730732224285,4.08438,2448.4,2447.9,4.68334067]
[1730732224578,4.0848,2448.1,2448.0,0.23046115]
[1730732224933,4.0847,2448.2,2448.0,0.23046115]
[1730732225278,0.0814626,2448.5,2448.1,0.23046115]
[1730732225483,0.0814626,2448.5,2448.2,0.99211307]
[1730732225484,4.08416,2448.5,2448.2,0.99211307]
[1730732225628,4.08416,2448.5,2448.3,0.23057779]
[1730732225974,4.08416,2448.5,2448.0,0.36894203]
[1730732225975,4.08465,2448.2,2448.0,0.36894203]
[1730732226135,4.08465,2448.2,2447.9,0.7615]
[1730732226136,4.08465,2448.2,2448.1,0.59963801]
[1730732226333,4.08446,2448.3,2448.1,0.59963801]
[1730732226534,4.08446,2448.3,2448.2,0.23057821]
[1730732226754,4.08446,2448.3,2448.2,0.59963713]
[1730732227365,0.816879,2448.3,2448.2,0.59963713]
[1730732227677,4.08446,2448.3,2448.2,0.60011068]
[1730732228055,4.08446,2448.3,2448.2,0.23080484]
[1730732228249,4.08446,2448.3,2448.2,0.60035202]
[1730732230079,4.08446,2448.3,2448.2,1.062665]
[1730732230304,4.08446,2448.3,2448.2,0.60035202]
[1730732230755,4.08446,2448.3,2448.2,1.06290319]
[1730732231376,4.08446,2448.3,2448.2,1.0642105]
[1730732231751,4.9718226,2448.3,2448.2,0.60149254]
[1730732231967,5.7887016,2448.3,2448.2,0.60149254]
[1730732232165,4.08446,2448.3,2448.2,0.60149254]
[1730732232368,4.08446,2448.3,2448.2,1.06429878]
[1730732233050,4.08405,2448.6,2448.2,1.86609878]
[1730732233255,4.08405,2448.6,2448.3,1.06422005]
[1730732233482,4.08405,2448.6,2448.4,0.60149254]
[1730732233650,0.0814626,2448.7,2448.4,0.60149254]
[1730732233856,4.08373,2448.8,2448.4,0.68317326]
[1730732234056,4.0838,2448.7,2448.4,0.60149254]
[1730732234288,0.7694,2449.1,2448.2,0.8018]
[1730732234289,4.0836,2448.9,2448.5,1.06414983]
[1730732234485,4.08381,2448.7,2448.6,1.06414983]
[1730732234687,4.08363,2448.8,2448.6,1.06414983]
[1730732234888,4.08363,2448.8,2448.7,0.60145825]
[1730732235056,4.08337,2449.0,2448.7,1.41795825]
[1730732235252,0.0814626,2449.1,2448.8,1.06405747]
[1730732235459,0.84692381,2449.9,2449.3,4.08277]
[1730732235694,1.27038572,2450.1,2449.3,4.08277]
[1730732235695,0.0814626,2450.1,2449.5,0.7808]
[1730732235902,4.08149,2450.1,2449.6,5.14620647]
[1730732236055,4.08149,2450.1,2449.7,0.83265335]
[1730732236388,4.08167,2450.0,2449.8,0.60145825]
[1730732236596,4.08167,2450.0,2449.9,0.23132312]
[1730732236952,4.08149,2450.1,2449.9,0.23132312]
[1730732237153,4.08149,2450.1,2450.0,0.23132312]
[1730732237395,4.08172,2450.0,2449.6,0.46122573]
[1730732237556,4.08172,2450.0,2449.7,0.59953491]
[1730732237763,4.08141,2450.2,2449.8,0.59950952]
[1730732237961,4.08141,2450.2,2449.9,0.59949909]
[1730732238161,4.08141,2450.2,2450.0,0.23057593]
[1730732238396,8.1628,2450.2,2449.8,0.36853413]
[1730732238691,4.08139,2450.2,2449.9,0.23032412]
[1730732238864,4.08139,2450.2,2449.5,5.32435573]
[1730732238865,4.08192,2449.9,2449.6,0.36855456]
[1730732239067,4.08192,2449.9,2449.7,0.23035453]
[1730732239266,4.08192,2449.9,2449.8,0.23035453]
[1730732239579,4.08158,2450.1,2449.8,0.23017748]
[1730732239894,4.08059,2450.7,2450.2,0.8008]
[1730732240202,4.08049,2450.7,2450.2,0.8008]
[1730732240498,4.08024,2450.9,2450.2,0.8008]
[1730732240655,4.08024,2450.9,2450.4,4.08092]
[1730732240860,0.8563626,2451.0,2450.5,4.08077]
[1730732240861,0.0814626,2451.0,2450.5,4.08077]
[1730732241082,0.8923626,2451.3,2450.7,0.7796]
[1730732241283,4.07938,2451.4,2450.8,4.08016]
[1730732241481,4.07947,2451.3,2450.9,0.08159074]
[1730732241805,4.07923,2451.5,2451.0,4.07988]
[1730732242158,4.07933,2451.4,2450.9,4.08009]
[1730732242590,4.07933,2451.4,2450.8,4.08015]
[1730732242591,4.07955,2451.3,2450.8,4.08015]
[1730732242758,4.07975,2451.2,2450.7,0.7796]
[1730732242979,4.07941,2451.4,2450.8,4.16184132]
[1730732243183,4.07949,2451.3,2450.8,4.16184132]
[1730732243417,4.07966,2451.2,2450.7,0.7796]
[1730732243604,4.07999,2451.0,2450.7,0.7796]
[1730732243918,4.07947,2451.3,2450.8,0.08159748]
[1730732244099,4.07947,2451.3,2450.7,4.8599]
[1730732244100,4.07968,2451.2,2450.7,4.8599]
[1730732244296,4.07984,2451.1,2450.7,0.7796]
[1730732244623,4.08079,2450.5,2450.4,3.26467341]
[1730732245185,4.7122526,2450.5,2450.4,3.26467341]
[1730732245431,7.7122526,2450.5,2450.4,3.26467341]
[1730732245789,8.4659526,2450.5,2450.4,3.26467341]
[1730732246011,8.38449,2450.5,2450.4,3.26467341]
[1730732246230,9.633018,2450.5,2450.4,3.26467341]
[1730732247488,9.083018,2450.5,2450.4,3.26467341]
[1730732248183,9.633018,2450.5,2450.4,3.41e-06]
[1730732248419,9.633018,2450.5,2449.4,0.08164444]
[1730732248420,5.552228,2450.5,2449.4,0.08164444]
[1730732248720,4.08255,2449.5,2449.3,0.759]
[1730732248880,4.08225,2449.7,2449.3,0.759]
[1730732249408,4.08191,2449.9,2449.4,4.08259]
[1730732249619,4.08175,2450.0,2449.4,4.08252]
[1730732249926,4.08184,2449.9,2449.3,7.84173]
[1730732250110,8.1635,2450.0,2449.4,4.08262]
[1730732250294,4.08188,2449.9,2449.5,0.22871452]
[1730732250507,4.08191,2449.9,2449.4,0.22870861]
[1730732250695,4.08191,2449.9,2449.4,4.08263]
[1730732251104,8.16347,2450.0,2449.5,0.08163748]
[1730732251321,4.08172,2450.0,2449.5,4.16404748]
[1730732251522,4.08172,2450.0,2449.6,4.08228]
[1730732251712,4.08182,2449.9,2449.5,0.08163748]
[1730732251927,4.08163,2450.0,2449.5,4.08243]
[1730732252131,5.552228,2450.5,2449.5,0.0816375]
[1730732252308,8.16379,2449.9,2449.4,4.08263]
[1730732252638,4.08189,2449.9,2449.5,0.08163599]
[1730732252812,4.08189,2449.9,2449.5,0.31043656]
[1730732253007,4.08189,2449.9,2449.5,0.22880057]
[1730732253213,4.08189,2449.9,2449.3,3.759]
[1730732253214,4.08189,2449.9,2449.6,0.08163599]
[1730732253605,4.08189,2449.9,2449.5,0.22884387]
[1730732253812,4.08189,2449.9,2449.6,0.08163686]
[1730732255112,4.08163,2450.0,2449.6,0.08163686]
[1730732255527,4.08163,2450.0,2449.6,0.31064767]
[1730732255845,4.08163,2450.0,2449.6,0.22901081]
[1730732256051,4.08163,2450.0,2449.3,0.759]
[1730732256052,4.08196,2449.8,2449.3,0.759]
[1730732256341,4.08138,2450.2,2449.7,4.08203]
[1730732256547,4.08138,2450.2,2449.6,4.08229]
[1730732256933,4.08138,2450.2,2449.7,4.16372125]
[1730732257137,4.08138,2450.2,2449.6,4.08229]
[1730732257138,4.08157,2450.1,2449.6,4.08229]
[1730732257310,4.08163,2450.0,2449.5,4.87875]
[1730732257664,0.0814626,2449.9,2449.6,0.22918685]
[1730732257947,0.0814626,2449.9,2449.5,4.87874]
[1730732257948,4.0818,2449.9,2449.5,4.87874]
[1730732258150,4.0818,2449.9,2449.6,0.22918653]
[1730732258450,4.08157,2450.1,2449.7,0.22930416]
[1730732258754,4.08145,2450.2,2449.8,0.08163593]
[1730732258951,4.0816,2450.1,2449.6,4.44918328]
[1730732259274,8.16315,2450.1,2449.7,0.22928262]
[1730732259449,4.08166,2450.0,2449.8,0.22928262]
[1730732259650,4.08166,2450.0,2449.7,0.36712743]
[1730732259821,4.08179,2449.9,2449.8,0.22942677]
[1730732260246,4.898135,2449.9,2449.8,0.22942677]
[1730732260561,4.08198,2449.8,2449.6,0.36741052]
[1730732260725,4.08198,2449.8,2449.7,0.22960979]
[1730732261051,4.08182,2449.9,2449.7,0.22960979]
[1730732261212,4.08146,2450.1,2449.7,4.89262]
[1730732261543,4.08146,2450.1,2449.8,0.22963633]
[1730732261806,4.90119,2450.5,2449.9,0.22963633]
[1730732261966,4.90119,2450.5,2449.8,4.08188]
[1730732261967,4.08115,2450.3,2450.0,0.22963633]
[1730732262258,4.08115,2450.3,2449.8,4.08188]
[1730732262555,4.08115,2450.3,2449.9,0.59801439]
[1730732262726,4.08115,2450.3,2450.0,0.59801439]
[1730732263050,4.08096,2450.4,2450.1,0.2299986]
[1730732263218,8.16207,2450.4,2450.2,0.2299986]
[1730732263415,4.08096,2450.4,2450.3,0.2299986]
[1730732264162,4.08081,2450.5,2450.3,0.23022979]
[1730732264461,4.08096,2450.4,2450.1,0.46083872]
[1730732264612,4.08096,2450.4,2450.2,1.05985473]
[1730732264814,4.08096,2450.4,2450.3,0.59903066]
[1730732265331,4.08071,2450.6,2450.3,1.06015291]
[1730732265542,4.08071,2450.6,2450.2,4.84959]
[1730732265543,4.08071,2450.6,2450.4,0.59903066]
[1730732265749,4.08071,2450.6,2450.5,0.59903066]
[1730732267541,4.08113,2450.3,2450.2,0.7683]
[1730732267738,4.08146,2450.1,2450.0,0.38427285]
[1730732268051,4.08146,2450.1,2450.0,0.59942346]
[1730732268456,4.08146,2450.1,2450.0,0.23054053]
[1730732268672,4.83666,2450.1,2450.0,0.23054053]
[1730732268987,6.136568,2450.1,2450.0,0.23054053]
[1730732269146,6.686568,2450.1,2450.0,0.23054053]
[1730732269883,6.686568,2450.1,2449.4,0.46117631]
[1730732269884,4.08246,2449.5,2449.4,0.46117631]
[1730732270181,4.08246,2449.5,2449.4,1.06074612]
[1730732270345,4.898939,2449.5,2449.4,0.59956981]
[1730732271652,4.898939,2449.5,2449.4,0.23059682]
[1730732271981,4.898939,2449.5,2449.4,0.59949051]
[1730732272160,5.448939,2449.5,2449.4,0.23059682]
[1730732272362,4.08363,2448.8,2448.7,0.38427285]
[1730732272564,4.08363,2448.8,2448.7,1.06099532]
[1730732273177,4.08363,2448.8,2448.7,1.06107452]
[1730732273348,4.08363,2448.8,2448.7,1.06110677]
[1730732273860,4.0833,2449.0,2448.7,0.59967531]
[1730732274044,4.0833,2449.0,2448.8,0.59967531]
[1730732274240,4.0833,2449.0,2448.9,0.59967531]
[1730732274686,4.0833,2449.0,2448.4,5.3101892]
[1730732274687,4.0833,2449.0,2448.4,1.2259192]
[1730732274840,4.08313,2449.1,2448.5,5.06875863]
[1730732275041,4.08355,2448.9,2448.6,0.59999316]
[1730732275239,4.08355,2448.9,2448.7,0.59999316]
[1730732275470,4.08355,2448.9,2448.8,0.59999316]
[1730732276167,4.08323,2449.1,2448.8,0.59999316]
[1730732276382,4.08323,2449.1,2448.9,0.5996689]
[1730732276683,4.08323,2449.1,2449.0,0.23075964]
[1730732276842,4.08299,2449.2,2449.0,0.23075964]
[1730732277046,4.85154,2449.4,2449.0,0.23075964]
[1730732277047,4.08272,2449.4,2449.1,0.23075964]
[1730732277271,4.0825,2449.5,2449.2,0.23075964]
[1730732277482,4.08279,2449.3,2449.0,0.7858]
[1730732277781,4.08258,2449.5,2449.1,0.59931737]
[1730732277994,4.08264,2449.4,2449.2,0.59931737]
[1730732278278,4.08264,2449.4,2449.3,0.23049973]
[1730732278483,4.08264,2449.4,2449.0,0.7858]
[1730732278686,4.08264,2449.4,2449.3,0.23049902]
[1730732278892,4.899147,2449.4,2449.3,0.23049902]
[1730732279270,4.08295,2449.3,2449.0,0.7858]
[1730732279459,4.08295,2449.3,2449.1,0.59931059]
[1730732279670,4.08295,2449.3,2449.2,0.23049712]
[1730732279984,4.08264,2449.4,2449.2,0.23049712]
[1730732280170,4.08264,2449.4,2449.3,0.59926007]
[1730732280376,4.08264,2449.4,2449.3,0.23049712]
[1730732281051,4.89915,2449.4,2449.3,0.23049712]
[1730732281261,4.89915,2449.4,2449.3,0.23046028]
[1730732281457,4.08337,2449.0,2448.7,0.8056]
[1730732281680,4.08337,2449.0,2448.8,0.59923552]
[1730732281895,4.08337,2449.0,2448.9,0.59923552]
[1730732282475,4.08316,2449.1,2448.9,0.59923552]
[1730732282685,0.81651,2449.4,2448.7,0.8056]
[1730732282686,4.08306,2449.2,2449.0,0.23046825]
[1730732282895,4.08306,2449.2,2449.1,0.23046825]
[1730732283054,4.08285,2449.3,2449.1,0.23046825]
[1730732283388,4.08325,2449.1,2448.9,0.36868643]
[1730732283601,4.08325,2449.1,2449.0,0.23042351]
[1730732284094,4.08321,2449.1,2449.0,0.23042189]
[1730732284458,4.08321,2449.1,2448.7,0.8056]
[1730732284654,4.08352,2448.9,2448.8,0.59904226]
[1730732284856,4.08352,2448.9,2448.5,1.21368015]
[1730732284857,4.08377,2448.8,2448.5,1.21368015]
[1730732285055,4.08379,2448.7,2448.6,0.59906973]
[1730732285367,4.08363,2448.8,2448.6,0.59906973]
[1730732285721,4.08363,2448.8,2448.7,0.23040449]
[1730732286296,4.08305,2449.2,2448.7,4.31412449]
[1730732286463,0.7708,2449.5,2448.8,0.59895896]
[1730732286464,4.08329,2449.0,2448.8,0.59895896]
[1730732286667,4.85338,2449.5,2448.9,0.23040449]
[1730732286668,4.08303,2449.2,2448.9,0.23040449]
[1730732286876,4.0829,2449.3,2448.8,4.08347]
[1730732287077,4.0829,2449.3,2448.9,0.59885609]
[1730732287283,4.08273,2449.4,2448.9,0.59885609]
[1730732287284,4.08297,2449.2,2449.0,0.23034101]
[1730732287461,4.08283,2449.3,2449.1,0.23034101]
[1730732287662,4.08298,2449.2,2448.9,0.36850493]
[1730732287869,4.08298,2449.2,2449.0,0.23031416]
[1730732288166,4.08279,2449.3,2449.1,0.23031903]
[1730732288473,4.08279,2449.3,2448.9,4.86645]
[1730732288659,4.08279,2449.3,2449.0,0.23030714]
[1730732288862,8.16538,2449.4,2449.1,0.23030714]
[1730732289101,4.08265,2449.4,2448.9,5.23496749]
[1730732289404,8.16536,2449.4,2449.0,0.5988656]
[1730732289614,8.16536,2449.4,2449.1,0.23033383]
[1730732289757,8.16536,2449.4,2449.2,0.23033383]
[1730732289758,4.08279,2449.3,2449.2,0.23033383]
[1730732289961,4.083,2449.2,2448.9,0.7831]
[1730732290307,4.08279,2449.3,2449.0,0.23033264]
[1730732290593,4.08259,2449.5,2448.9,0.7831]
[1730732290594,4.0832,2449.1,2448.9,0.7831]
[1730732290914,4.0832,2449.1,2448.8,0.36853177]
[1730732291061,4.0832,2449.1,2448.7,0.36853177]
[1730732291062,4.08346,2448.9,2448.7,0.36853177]
[1730732291258,4.08346,2448.9,2448.8,0.23036662]
[1730732291809,4.08331,2449.0,2448.8,0.23036662]
[1730732292100,4.08331,2449.0,2448.9,0.23037805]
[1730732293166,4.08349,2448.9,2448.7,0.36853177]
[1730732293520,8.16635,2449.1,2448.8,0.2304074]
[1730732293800,4.08314,2449.1,2448.9,0.2304074]
[1730732293964,8.16636,2449.1,2448.7,0.36853177]
[1730732294162,4.08255,2449.5,2449.0,0.7656]
[1730732294361,4.08246,2449.5,2449.0,0.7656]
[1730732294556,4.08255,2449.5,2449.1,0.23052303]
[1730732294862,3.0,2449.8,2449.2,4.31334303]
[1730732294863,4.08213,2449.7,2449.2,4.31334303]
[1730732295095,8.16419,2449.8,2449.3,4.08278]
[1730732295262,4.08224,2449.7,2449.4,0.23061526]
[1730732295458,4.08224,2449.7,2449.5,0.23060211]
[1730732295675,4.08224,2449.7,2449.3,0.36898397]
[1730732295874,4.08224,2449.7,2449.4,0.23061011]
[1730732296074,4.082,2449.8,2449.5,0.7782]
[1730732296275,4.08189,2449.9,2449.6,0.23080828]
[1730732296512,4.08196,2449.8,2449.7,0.23080828]
[1730732297407,4.08233,2449.6,2449.3,0.36968416]
[1730732297623,1.60602381,2449.8,2449.4,0.23104561]
[1730732297786,4.27038572,2450.0,2449.4,0.23104561]
[1730732297787,4.08171,2450.0,2449.5,8.92610507]
[1730732297995,4.08143,2450.2,2449.6,4.68292407]
[1730732298174,4.92802381,2450.4,2449.5,4.61261785]
[1730732298175,4.0811,2450.4,2449.8,4.08188]
[1730732298381,4.0811,2450.4,2450.0,0.7916]
[1730732298723,4.08123,2450.3,2450.1,0.23109722]
[1730732298923,4.08108,2450.4,2450.0,0.7916]
[1730732299214,4.0808,2450.5,2450.0,4.87312]
[1730732299380,4.08108,2450.4,2450.1,0.23087985]
[1730732299578,4.08108,2450.4,2450.2,0.23087985]
[1730732299808,4.08108,2450.4,2450.0,0.7916]
[1730732300015,4.08114,2450.3,2450.1,0.23092064]
[1730732300233,0.84692381,2450.7,2450.2,4.31212064]
[1730732300234,4.08049,2450.7,2450.2,4.31212064]
[1730732300511,4.08049,2450.7,2450.3,0.23079757]
[1730732300715,8.1611,2450.7,2450.4,0.23079757]
[1730732300915,8.1611,2450.7,2450.2,4.0812]
[1730732301099,4.08049,2450.7,2450.3,0.23078128]
[1730732301303,5.71477381,2450.9,2450.1,4.98163857]
[1730732301501,4.08025,2450.9,2450.4,4.08088]
[1730732301713,4.08023,2450.9,2450.5,0.23059294]
[1730732301892,4.08004,2451.0,2450.5,4.90358]
[1730732302103,4.08004,2451.0,2450.6,0.2305414]
[1730732302410,4.08004,2451.0,2450.5,4.90358]
[1730732302615,4.07991,2451.1,2450.5,4.90358]
[1730732302616,4.08016,2450.9,2450.5,0.8228]
[1730732302778,4.07998,2451.0,2450.5,4.90352]
[1730732302973,4.07998,2451.0,2450.5,0.8228]
[1730732303215,4.07998,2451.0,2450.5,1.05309567]
[1730732303415,8.1598,2451.1,2450.6,4.08063]
[1730732303582,4.07996,2451.0,2450.6,4.08063]
[1730732303926,4.0799,2451.1,2450.6,4.08055]
[1730732304420,4.08004,2451.0,2450.5,0.8228]
[1730732304720,4.07973,2451.2,2450.6,4.08055]
[1730732304919,8.15945,2451.2,2450.6,4.08055]
[1730732305218,4.08011,2451.0,2450.5,0.8228]
[1730732305430,0.408011,2451.0,2450.5,0.8228]
[1730732305611,4.08032,2450.8,2450.3,4.08107]
[1730732305785,4.08056,2450.7,2450.2,0.758]
[1730732305985,4.08073,2450.6,2450.2,0.98828208]
[1730732306181,4.08073,2450.6,2450.2,0.758]
[1730732306378,4.08073,2450.6,2450.2,0.98821151]
[1730732306849,4.08097,2450.4,2450.2,0.758]
[1730732307022,4.08089,2450.5,2450.2,0.758]
[1730732307878,4.08046,2450.7,2450.2,0.758]
[1730732308082,4.08041,2450.8,2450.2,0.758]
[1730732308381,4.08056,2450.7,2450.2,4.83922]
[1730732308577,4.08056,2450.7,2450.2,8.92043]
[1730732308782,4.08046,2450.7,2450.2,4.83921]
[1730732309078,8.16044,2450.9,2450.4,4.08095]
[1730732309285,4.08047,2450.7,2450.2,4.83921]
[1730732309626,4.08015,2450.9,2450.4,4.08089]
[1730732309825,3.0,2451.4,2450.5,4.08074]
[1730732309826,4.07993,2451.1,2450.5,4.08074]
[1730732310042,4.08007,2451.0,2450.5,4.08074]
[1730732310326,4.08007,2451.0,2450.5,8.16146]
[1730732310523,4.08007,2451.0,2450.6,4.08059]
[1730732310746,4.07991,2451.1,2450.6,4.08059]
[1730732311232,4.08003,2451.0,2450.6,4.08059]
[1730732311792,0.7513,2451.3,2450.5,4.08079]
[1730732311793,4.08015,2450.9,2450.5,4.08079]
[1730732311994,4.07997,2451.0,2450.6,4.08062]
[1730732312527,4.0804,2450.8,2450.3,4.08105]
[1730732313028,4.08047,2450.7,2450.2,0.758]
[1730732313196,4.08081,2450.5,2450.2,0.758]
[1730732313397,4.08079,2450.5,2450.2,0.758]
[1730732313608,4.0808,2450.5,2450.2,0.758]
[1730732314136,4.08104,2450.4,2450.2,0.758]
[1730732314520,4.0808,2450.5,2450.2,0.758]
[1730732315044,4.08057,2450.7,2450.2,0.758]
[1730732315334,4.08078,2450.6,2450.2,0.758]
[1730732316140,4.08078,2450.6,2450.2,4.83928]
[1730732316634,4.08078,2450.6,2450.2,0.758]
[1730732316834,4.89002,2451.0,2450.2,0.758]
[1730732317014,4.08065,2450.6,2450.2,4.83929]
[1730732317744,4.08062,2450.7,2450.2,4.83917]
[1730732318034,4.08062,2450.7,2450.3,4.31123824]
[1730732318240,4.08062,2450.7,2450.3,4.08104]
[1730732318743,4.08023,2450.9,2450.5,4.08078]
[1730732318913,4.08006,2451.0,2450.4,4.08093]
[1730732319241,4.08006,2451.0,2450.6,4.83563]
[1730732319447,4.0797,2451.2,2450.7,4.08037]
[1730732319748,4.0797,2451.2,2450.8,4.08018]
[1730732320056,4.07946,2451.3,2450.6,0.755]
[1730732320345,4.0803,2450.8,2450.7,0.23031847]
[1730732320499,0.7989,2451.4,2450.4,0.23032949]
[1730732320500,4.08074,2450.6,2450.4,0.23032949]
[1730732320835,4.87388,2450.7,2450.3,0.23033511]
[1730732320836,4.08096,2450.4,2450.3,0.23033511]
[1730732321135,4.08083,2450.5,2450.3,0.23033511]
[1730732321435,4.08111,2450.4,2450.1,0.36852752]
[1730732321605,4.08111,2450.4,2450.2,0.23045067]
[1730732321806,4.08111,2450.4,2450.3,0.23045067]
[1730732322032,4.87387,2450.7,2450.0,0.8174]
[1730732322261,0.7934,2450.7,2450.1,0.5991485]
[1730732322434,4.08106,2450.4,2450.1,0.5991485]
[1730732322774,4.08093,2450.5,2450.1,0.5991485]
[1730732322775,4.08091,2450.5,2450.2,0.23062098]
[1730732323077,4.08057,2450.7,2450.3,4.31166098]
[1730732323230,4.08057,2450.7,2450.4,0.23062098]
[1730732323550,4.08071,2450.6,2450.1,4.0813]
[1730732323759,4.08071,2450.6,2450.5,0.23077336]
[1730732323961,4.08035,2450.8,2450.5,0.23078265]
[1730732324145,4.08047,2450.7,2450.6,0.2310146]
[1730732324833,4.08035,2450.8,2450.6,0.2310146]
[1730732325057,4.08023,2450.9,2450.5,0.7972]
[1730732325058,4.08046,2450.7,2450.5,0.7972]
[1730732325385,4.08046,2450.7,2450.6,0.23115909]
[1730732325686,4.896536,2450.7,2450.6,0.23115909]
[1730732326468,4.08046,2450.7,2450.6,0.23115909]
[1730732327440,4.08107,2450.4,2450.0,1.18308651]
[1730732327642,4.08107,2450.4,2450.1,0.60186215]
[1730732327844,4.08113,2450.3,2450.2,0.60186215]
[1730732328267,4.08098,2450.4,2450.2,0.60186215]
[1730732328481,4.08098,2450.4,2450.3,0.60186215]
[1730732329257,4.897158,2450.4,2450.3,0.60186215]
[1730732329668,4.897158,2450.4,2450.3,0.23147849]
[1730732329869,5.447158,2450.4,2450.3,0.23147849]
[1730732331206,4.08113,2450.3,2449.7,0.7977]
[1730732331512,5.447158,2450.4,2449.8,0.23157364]
[1730732331513,4.08171,2450.0,2449.8,0.23157364]
[1730732331804,4.08181,2449.9,2449.7,0.7977]
[1730732332008,4.08171,2450.0,2449.8,0.60214617]
[1730732332190,8.16343,2450.0,2449.9,0.60214617]
[1730732332813,4.08143,2450.2,2449.9,0.60214617]
[1730732333098,4.08143,2450.2,2450.0,0.60214617]
[1730732333099,4.08146,2450.1,2450.0,0.60214617]
[1730732333312,6.226144,2450.1,2450.0,0.60214617]
[1730732333614,6.226144,2450.1,2449.0,3.0]
[1730732333615,4.08263,2449.4,2449.2,0.38612478]
[1730732333914,4.08243,2449.6,2449.3,0.60189793]
[1730732334079,4.08243,2449.6,2449.4,0.60189793]
[1730732334279,4.08243,2449.6,2449.1,5.64594513]
[1730732334280,4.08243,2449.6,2449.5,0.60189793]
[1730732334796,4.08243,2449.6,2449.1,1.17679035]
[1730732334797,4.08248,2449.5,2449.1,1.17679035]
[1730732335018,4.08248,2449.5,2449.2,0.60160321]
[1730732335188,4.08265,2449.4,2449.3,0.2313789]
[1730732335389,4.08225,2449.7,2449.3,0.60139421]
[1730732335603,4.08198,2449.8,2449.4,0.60137952]
[1730732335925,4.08181,2449.9,2449.5,4.68383578]
[1730732336076,4.08113,2450.3,2449.7,4.08203]
[1730732336422,8.16269,2450.2,2449.8,0.60137578]
[1730732336624,4.08114,2450.3,2449.9,0.60137578]
[1730732336821,4.08114,2450.3,2450.0,0.60137578]
[1730732337061,4.08114,2450.3,2450.1,0.2313789]
[1730732337329,4.08114,2450.3,2449.8,4.08184]
[1730732337330,4.08131,2450.2,2450.0,0.36984238]
[1730732337525,4.08131,2450.2,2450.1,0.23113174]
[1730732337736,4.08114,2450.3,2450.1,0.23113174]
[1730732337931,4.08129,2450.2,2449.8,4.08187]
[1730732338098,4.08129,2450.2,2449.9,0.60096855]
[1730732338297,4.08129,2450.2,2449.8,4.08187]
[1730732338619,4.08129,2450.2,2449.9,0.60098082]
[1730732338823,4.08129,2450.2,2450.0,0.60099835]
[1730732339016,4.08171,2450.0,2449.6,0.7902]
[1730732339335,4.08146,2450.1,2449.7,0.60104296]
[1730732339336,4.08156,2450.1,2449.7,0.60104296]
[1730732339498,4.08163,2450.0,2449.8,0.60104296]
[1730732339698,4.08163,2450.0,2449.6,4.87235]
[1730732339699,4.08163,2450.0,2449.9,0.60099711]
[1730732340309,4.08163,2450.0,2449.9,0.23115807]
[1730732340491,5.47771381,2450.5,2449.9,0.23115807]
[1730732340492,4.0815,2450.1,2449.9,0.6009998]
[1730732340713,4.08163,2450.0,2449.6,0.7902]
[1730732340916,4.08163,2450.0,2449.7,0.60098884]
[1730732341118,4.08163,2450.0,2449.6,4.87247]
[1730732341347,4.08163,2450.0,2449.7,0.60101477]
[1730732341553,4.08163,2450.0,2449.8,0.60101477]
[1730732341754,4.08163,2450.0,2449.9,0.60101477]
[1730732341955,4.08163,2450.0,2449.9,0.23115259]
[1730732342123,4.972961,2450.0,2449.9,0.23115259]
[1730732342542,4.08229,2449.6,2449.5,0.36993966]
[1730732342728,4.08229,2449.6,2449.5,0.60113857]
[1730732343236,4.08217,2449.7,2449.5,0.60113857]
[1730732343434,4.08217,2449.7,2449.6,0.60107994]
[1730732343435,8.16441,2449.7,2449.6,0.60107994]
[1730732344520,8.16441,2449.7,2449.6,0.23119891]
[1730732345777,4.08236,2449.6,2449.4,0.36985433]
[1730732346084,4.08236,2449.6,2449.5,0.23111764]
[1730732346232,4.08207,2449.8,2449.5,0.23111764]
[1730732346427,0.84692381,2450.0,2449.2,4.08295]
[1730732346428,4.08169,2450.0,2449.6,0.98909674]
[1730732346733,4.08169,2450.0,2449.7,0.23111007]
[1730732347069,4.08169,2450.0,2449.8,0.23110435]
[1730732347275,1.60252381,2450.3,2449.6,1.12779415]
[1730732347574,4.08176,2450.0,2449.7,0.60090087]
[1730732347735,4.08179,2449.9,2449.8,0.23110672]
[1730732348134,4.08179,2449.9,2449.6,0.758]
[1730732348547,4.08179,2449.9,2449.7,0.23110578]
[1730732348751,4.08179,2449.9,2449.8,0.23110578]
[1730732349073,4.08153,2450.1,2449.8,0.2311164]
[1730732349244,4.08164,2450.0,2449.6,4.84028]
[1730732349449,4.08164,2450.0,2449.7,0.60105352]
[1730732349669,4.08164,2450.0,2449.8,0.23116749]
[1730732349884,4.08164,2450.0,2449.9,0.23116749]
[1730732350890,4.0813,2450.2,2449.9,0.23116749]
[1730732351088,0.84692381,2450.4,2450.1,0.8238]
[1730732351089,4.92795381,2450.4,2450.1,0.8238]
[1730732351301,4.08103,2450.4,2450.2,0.23127504]
[1730732351481,8.16183,2450.5,2450.1,4.90519]
[1730732351791,4.08089,2450.5,2450.2,0.23127398]
[1730732352015,4.08096,2450.4,2450.3,0.23127398]
[1730732352349,4.92748381,2450.7,2450.3,4.31234398]